[Event "*** Titled Tuesday Blitz"]
[Site "Chess.com"]
[Date "2020.04.07"]
[Round "2"]
[White "LogoCzar"]
[Black "Euwe1234"]
[Result "0-1"]
[WhiteElo "2395"]
[BlackElo "2118"]
[TimeControl "180+1"]
[EndTime "13:19:27 PDT"]
[Termination "Euwe1234 won by checkmate"]

1. e4 {[%clk 0:03:00.9]} 1... c5 {[%clk 0:02:59.7]} 2. Nf3 {[%clk 0:03:00.9]}
2... d6 {[%clk 0:02:59.9]} 3. d4 {[%clk 0:03:01.3]} 3... cxd4 {[%clk 0:03:00.8]}
4. Nxd4 {[%clk 0:03:02.2]} 4... Nf6 {[%clk 0:03:01.1]} 5. Nc3 {[%clk 0:03:02.6]}
5... a6 {[%clk 0:03:01.3]} 6. Bc4 {[%clk 0:03:02.7]} 6... e6 {[%clk 0:02:59.3]}
7. Bb3 {[%clk 0:03:03.1]} 7... Nbd7 {[%clk 0:02:59.5]} 8. f4 {[%clk 0:03:03]}
8... Nc5 {[%clk 0:02:59.2]} 9. f5 {[%clk 0:03:03.4]} 9... e5 {[%clk 0:02:55.9]}
10. Nde2 {[%clk 0:03:03.2]} 10... b5 {[%clk 0:02:51.2]} 11. Bg5 {[%clk
0:03:01.2]} 11... Bb7 {[%clk 0:02:50.8]} 12. Bxf6 {[%clk 0:03:00.1]} 12... Qxf6
{[%clk 0:02:50.2]} 13. Nd5 {[%clk 0:02:54.1]} 13... Qh4+ {[%clk 0:02:49]} 14.
Ng3 {[%clk 0:02:44.7]} 14... Nxe4 {[%clk 0:02:45.5]} 15. Qf3 {[%clk 0:02:14.9]}
15... Nxg3 {[%clk 0:02:42.9]} 16. Nc7+ {[%clk 0:02:00.3]} 16... Kd8 {[%clk
0:02:39.5]} 17. Qxb7 {[%clk 0:01:57.1]} 17... Nxh1+ {[%clk 0:01:45.9]} 18. g3
{[%clk 0:01:56.1]} 18... Qb4+ {[%clk 0:01:26.6]} 19. c3 {[%clk 0:01:54.7]} 19...
Qc5 {[%clk 0:01:26.8]} 20. Ne6+ {[%clk 0:01:38.1]} 20... fxe6 {[%clk 0:01:25.4]}
21. Qxa8+ {[%clk 0:01:36.2]} 21... Ke7 {[%clk 0:01:18.4]} 22. f6+ {[%clk
0:01:20.5]} 22... Kxf6 {[%clk 0:01:13.6]} 23. Qf3+ {[%clk 0:01:05.3]} 23... Ke7
{[%clk 0:00:52.8]} 24. Qb7+ {[%clk 0:01:01.4]} 24... Kd8 {[%clk 0:00:51.7]} 25.
O-O-O {[%clk 0:00:52.6]} 25... d5 {[%clk 0:00:41.8]} 26. Qxa6 {[%clk 0:00:40.6]}
26... Nf2 {[%clk 0:00:35.8]} 27. Qa8+ {[%clk 0:00:19.7]} 27... Qc8 {[%clk
0:00:34.6]} 28. Qa5+ {[%clk 0:00:19.4]} 28... Qc7 {[%clk 0:00:32.9]} 29. Qa8+
{[%clk 0:00:18.1]} 29... Ke7 {[%clk 0:00:32.5]} 30. Rf1 {[%clk 0:00:17.1]} 30...
Ne4 {[%clk 0:00:30.3]} 31. Bxd5 {[%clk 0:00:17]} 31... exd5 {[%clk 0:00:29.4]}
32. Qxd5 {[%clk 0:00:17.8]} 32... Nf6 {[%clk 0:00:29.4]} 33. Qxb5 {[%clk
0:00:16.4]} 33... g6 {[%clk 0:00:27.9]} 34. Re1 {[%clk 0:00:16.1]} 34... Bh6+
{[%clk 0:00:26.2]} 35. Kc2 {[%clk 0:00:14.8]} 35... e4 {[%clk 0:00:26.4]} 36.
Qb4+ {[%clk 0:00:14]} 36... Kf7 {[%clk 0:00:26]} 37. Qb3+ {[%clk 0:00:14.1]}
37... Kg7 {[%clk 0:00:25.7]} 38. Qe6 {[%clk 0:00:14.3]} 38... Re8 {[%clk
0:00:25.2]} 39. Qh3 {[%clk 0:00:13.4]} 39... Qc4 {[%clk 0:00:24.5]} 40. b3
{[%clk 0:00:12.7]} 40... Qd3+ {[%clk 0:00:24.3]} 41. Kb2 {[%clk 0:00:13.2]}
41... Bd2 {[%clk 0:00:24.5]} 42. Rf1 {[%clk 0:00:10.1]} 42... Bxc3+ {[%clk
0:00:23.7]} 43. Kc1 {[%clk 0:00:08.9]} 43... Qd2+ {[%clk 0:00:23.5]} 44. Kb1
{[%clk 0:00:09.3]} 44... Qb2# {[%clk 0:00:24.4]} 0-1

[Event "*** Titled Tuesday Blitz"]
[Site "Chess.com"]
[Date "2020.04.07"]
[Round "2"]
[White "kinga2008"]
[Black "ChadBiryani"]
[Result "0-1"]
[WhiteElo "1911"]
[BlackElo "2398"]
[TimeControl "180+1"]
[EndTime "13:19:28 PDT"]
[Termination "ChadBiryani won by resignation"]

1. e4 {[%clk 0:03:00.9]} 1... c5 {[%clk 0:02:57.3]} 2. Nf3 {[%clk 0:02:56.6]}
2... d6 {[%clk 0:02:57.3]} 3. Bd3 {[%clk 0:02:51.4]} 3... g6 {[%clk 0:02:56.5]}
4. c3 {[%clk 0:02:49.6]} 4... Bg7 {[%clk 0:02:55.7]} 5. Bc2 {[%clk 0:02:48.8]}
5... Nf6 {[%clk 0:02:56]} 6. h3 {[%clk 0:02:41.4]} 6... O-O {[%clk 0:02:55.1]}
7. O-O {[%clk 0:02:40.1]} 7... b5 {[%clk 0:02:54.8]} 8. d4 {[%clk 0:02:38.1]}
8... Bb7 {[%clk 0:02:54]} 9. Re1 {[%clk 0:02:35.3]} 9... Nc6 {[%clk 0:02:51.9]}
10. a3 {[%clk 0:02:29]} 10... Qb6 {[%clk 0:02:40.7]} 11. Be3 {[%clk 0:02:26.7]}
11... Rac8 {[%clk 0:02:38.1]} 12. Nbd2 {[%clk 0:02:23.2]} 12... Rfd8 {[%clk
0:02:28.4]} 13. b4 {[%clk 0:02:20.9]} 13... cxd4 {[%clk 0:02:25]} 14. cxd4
{[%clk 0:02:21.8]} 14... Qc7 {[%clk 0:02:14.7]} 15. Rc1 {[%clk 0:02:20.1]} 15...
Qd7 {[%clk 0:02:12.4]} 16. Bd3 {[%clk 0:02:14.1]} 16... a6 {[%clk 0:01:49.8]}
17. Nb3 {[%clk 0:02:08.4]} 17... Ne8 {[%clk 0:01:44.4]} 18. d5 {[%clk
0:02:00.8]} 18... Ne5 {[%clk 0:01:41.5]} 19. Nxe5 {[%clk 0:01:58.5]} 19... Bxe5
{[%clk 0:01:42.4]} 20. f4 {[%clk 0:01:57.1]} 20... Bg7 {[%clk 0:01:42]} 21. Na5
{[%clk 0:01:44]} 21... Ba8 {[%clk 0:01:29]} 22. Qf3 {[%clk 0:01:26.4]} 22... e6
{[%clk 0:01:25]} 23. a4 {[%clk 0:00:47.4]} 23... exd5 {[%clk 0:01:15]} 24. exd5
{[%clk 0:00:48.3]} 24... Nf6 {[%clk 0:01:15.3]} 25. Nc6 {[%clk 0:00:41.7]} 25...
bxa4 {[%clk 0:00:51.4]} 26. Nxd8 {[%clk 0:00:39.7]} 26... Rxc1 {[%clk
0:00:49.6]} 27. Rxc1 {[%clk 0:00:37.1]} 27... Bxd5 {[%clk 0:00:50]} 28. Qe2
{[%clk 0:00:30.2]} 28... Qxd8 {[%clk 0:00:48.6]} 29. Bxa6 {[%clk 0:00:29.8]}
29... Be6 {[%clk 0:00:45.8]} 30. Bc4 {[%clk 0:00:23]} 30... d5 {[%clk
0:00:44.6]} 31. Ba6 {[%clk 0:00:20.6]} 31... Ne4 {[%clk 0:00:40.2]} 32. Qd3
{[%clk 0:00:10.9]} 32... h5 {[%clk 0:00:37.9]} 33. Bd4 {[%clk 0:00:10]} 33...
Qd6 {[%clk 0:00:29.5]} 34. Bxg7 {[%clk 0:00:09.6]} 34... Kxg7 {[%clk 0:00:29.5]}
35. Qd4+ {[%clk 0:00:10]} 35... Kh7 {[%clk 0:00:28.8]} 36. Bb5 {[%clk
0:00:08.2]} 36... Qxf4 {[%clk 0:00:27.9]} 37. Re1 {[%clk 0:00:05.1]} 37... a3
{[%clk 0:00:21.8]} 38. Bc6 {[%clk 0:00:05.3]} 38... a2 {[%clk 0:00:11.7]} 39.
Bxd5 {[%clk 0:00:04]} 39... Bxd5 {[%clk 0:00:11.9]} 40. Qxd5 {[%clk 0:00:04.9]}
40... Qf2+ {[%clk 0:00:11.9]} 41. Kh2 {[%clk 0:00:05.2]} 41... Qg3+ {[%clk
0:00:11.9]} 42. Kh1 {[%clk 0:00:04.8]} 42... Qxe1+ {[%clk 0:00:12.3]} 43. Kh2
{[%clk 0:00:05.7]} 43... Qg3+ {[%clk 0:00:10.9]} 0-1

[Event "*** Titled Tuesday Blitz"]
[Site "Chess.com"]
[Date "2020.04.07"]
[Round "2"]
[White "GeorgMeier"]
[Black "DrVelja"]
[Result "0-1"]
[WhiteElo "3000"]
[BlackElo "2636"]
[TimeControl "180+1"]
[EndTime "13:19:29 PDT"]
[Termination "DrVelja won on time"]

1. Nf3 {[%clk 0:03:00.9]} 1... Nf6 {[%clk 0:02:59.8]} 2. d4 {[%clk 0:03:00.1]}
2... g6 {[%clk 0:03:00]} 3. Bg5 {[%clk 0:02:58]} 3... Bg7 {[%clk 0:02:59.8]} 4.
Nbd2 {[%clk 0:02:53.1]} 4... O-O {[%clk 0:03:00.1]} 5. e3 {[%clk 0:02:53.2]}
5... d6 {[%clk 0:02:54.3]} 6. Bd3 {[%clk 0:02:49.4]} 6... c5 {[%clk 0:02:50.3]}
7. c3 {[%clk 0:02:48.4]} 7... h6 {[%clk 0:02:48]} 8. Bh4 {[%clk 0:02:48]} 8...
Nc6 {[%clk 0:02:46.4]} 9. O-O {[%clk 0:02:46.1]} 9... cxd4 {[%clk 0:02:39.1]}
10. exd4 {[%clk 0:02:45.6]} 10... e5 {[%clk 0:02:37.4]} 11. dxe5 {[%clk
0:02:37]} 11... dxe5 {[%clk 0:02:38.3]} 12. Qe2 {[%clk 0:02:33.1]} 12... Qc7
{[%clk 0:02:30.7]} 13. Rad1 {[%clk 0:02:29.1]} 13... Nh5 {[%clk 0:02:28.1]} 14.
Bg3 {[%clk 0:02:25.7]} 14... f5 {[%clk 0:02:16]} 15. Bb5 {[%clk 0:01:40.7]}
15... Nxg3 {[%clk 0:02:13.4]} 16. hxg3 {[%clk 0:01:40.5]} 16... e4 {[%clk
0:02:06.2]} 17. Ne1 {[%clk 0:01:40.7]} 17... Ne5 {[%clk 0:02:01]} 18. Nc2 {[%clk
0:01:22.5]} 18... Be6 {[%clk 0:01:50.9]} 19. Ne3 {[%clk 0:01:09.6]} 19... Rad8
{[%clk 0:01:45]} 20. Bc4 {[%clk 0:00:54.2]} 20... Nxc4 {[%clk 0:01:43.3]} 21.
Ndxc4 {[%clk 0:00:53.8]} 21... Kh7 {[%clk 0:01:17.2]} 22. a4 {[%clk 0:00:49.5]}
22... Qc6 {[%clk 0:01:05.1]} 23. Na5 {[%clk 0:00:31.2]} 23... Qxa4 {[%clk
0:00:57.2]} 24. Nxb7 {[%clk 0:00:30.1]} 24... Rxd1 {[%clk 0:00:56.1]} 25. Rxd1
{[%clk 0:00:29.8]} 25... Qc6 {[%clk 0:00:52.4]} 26. Na5 {[%clk 0:00:28.9]} 26...
Qc5 {[%clk 0:00:43.7]} 27. Qa6 {[%clk 0:00:26.1]} 27... Bc8 {[%clk 0:00:43.6]}
28. b4 {[%clk 0:00:14]} 28... Qxe3 {[%clk 0:00:24.2]} 29. Qxc8 {[%clk
0:00:08.7]} 29... Rxc8 {[%clk 0:00:24.6]} 30. fxe3 {[%clk 0:00:08.3]} 30... Rxc3
{[%clk 0:00:25.5]} 31. Rd7 {[%clk 0:00:07.6]} 31... Rxe3 {[%clk 0:00:24.9]} 32.
Nc6 {[%clk 0:00:07.1]} 32... h5 {[%clk 0:00:18.5]} 33. Rxa7 {[%clk 0:00:06.5]}
33... Rxg3 {[%clk 0:00:15.3]} 34. b5 {[%clk 0:00:03.4]} 34... Rb3 {[%clk
0:00:15.7]} 35. Rb7 {[%clk 0:00:03.3]} 35... e3 {[%clk 0:00:15.3]} 36. Kf1
{[%clk 0:00:03.8]} 36... Rb2 {[%clk 0:00:15.6]} 37. Nd4 {[%clk 0:00:03.5]} 37...
Kh6 {[%clk 0:00:12.1]} 38. Ne6 {[%clk 0:00:02.1]} 38... e2+ {[%clk 0:00:11.7]}
39. Kf2 {[%clk 0:00:01.6]} 39... Bc3 {[%clk 0:00:11.8]} 0-1

[Event "*** Titled Tuesday Blitz"]
[Site "Chess.com"]
[Date "2020.04.07"]
[Round "2"]
[White "VeraLevel"]
[Black "Nancy11111"]
[Result "1-0"]
[WhiteElo "2693"]
[BlackElo "2354"]
[TimeControl "180+1"]
[EndTime "13:19:30 PDT"]
[Termination "VeraLevel won by resignation"]

1. d4 {[%clk 0:03:00.9]} 1... f5 {[%clk 0:02:59.2]} 2. Nf3 {[%clk 0:03:00.3]}
2... Nf6 {[%clk 0:02:59.6]} 3. Bf4 {[%clk 0:02:59.1]} 3... e6 {[%clk 0:03:00]}
4. e3 {[%clk 0:02:59.5]} 4... Be7 {[%clk 0:03:00.4]} 5. h3 {[%clk 0:02:59.1]}
5... d6 {[%clk 0:03:00.8]} 6. Be2 {[%clk 0:02:59.5]} 6... O-O {[%clk 0:02:59.2]}
7. O-O {[%clk 0:02:58.6]} 7... Nc6 {[%clk 0:02:59]} 8. c4 {[%clk 0:02:59.1]}
8... Ne4 {[%clk 0:02:56.3]} 9. Nfd2 {[%clk 0:02:58.6]} 9... Nxd2 {[%clk
0:02:54.2]} 10. Qxd2 {[%clk 0:02:59.5]} 10... Bf6 {[%clk 0:02:53.9]} 11. Bh2
{[%clk 0:02:58.7]} 11... Qe8 {[%clk 0:02:52.7]} 12. Nc3 {[%clk 0:02:58.4]} 12...
e5 {[%clk 0:02:51.7]} 13. Nd5 {[%clk 0:02:58.4]} 13... Bd8 {[%clk 0:02:51.1]}
14. c5 {[%clk 0:02:54.4]} 14... Kh8 {[%clk 0:02:38.1]} 15. cxd6 {[%clk
0:02:50.6]} 15... cxd6 {[%clk 0:02:39]} 16. dxe5 {[%clk 0:02:51]} 16... dxe5
{[%clk 0:02:39.9]} 17. Rac1 {[%clk 0:02:50.3]} 17... Be6 {[%clk 0:02:38.7]} 18.
Bb5 {[%clk 0:02:50.2]} 18... a6 {[%clk 0:02:32.9]} 19. Ba4 {[%clk 0:02:47]}
19... Qf7 {[%clk 0:02:27.1]} 20. Rfd1 {[%clk 0:02:42.8]} 20... Ba5 {[%clk
0:02:01.8]} 21. b4 {[%clk 0:02:42.6]} 21... Bxd5 {[%clk 0:01:56.2]} 22. Qxd5
{[%clk 0:02:26.6]} 22... Qxd5 {[%clk 0:01:55.6]} 23. Rxd5 {[%clk 0:02:27.5]}
23... Bxb4 {[%clk 0:01:56.1]} 24. Bxc6 {[%clk 0:02:24.9]} 24... bxc6 {[%clk
0:01:57]} 25. Rxc6 {[%clk 0:02:23]} 25... f4 {[%clk 0:01:55.6]} 26. exf4 {[%clk
0:02:08.5]} 26... exf4 {[%clk 0:01:56.5]} 27. Rc4 {[%clk 0:02:08.7]} 27... a5
{[%clk 0:01:53.2]} 28. Bxf4 {[%clk 0:02:07.7]} 28... Rae8 {[%clk 0:01:52.9]} 29.
Be5 {[%clk 0:02:06.3]} 29... Rf7 {[%clk 0:01:50.1]} 30. g4 {[%clk 0:02:01.7]}
30... Kg8 {[%clk 0:01:47.7]} 31. Kg2 {[%clk 0:02:01.7]} 31... Ra7 {[%clk
0:01:32.4]} 32. a4 {[%clk 0:01:59]} 32... g5 {[%clk 0:01:30.5]} 33. Bf6 {[%clk
0:01:58.2]} 33... h6 {[%clk 0:01:30.3]} 34. h4 {[%clk 0:01:58.4]} 34... gxh4
{[%clk 0:01:29.9]} 35. Bxh4 {[%clk 0:01:58.2]} 35... Rg7 {[%clk 0:01:28.6]} 36.
Rh5 {[%clk 0:01:55.1]} 36... Rg6 {[%clk 0:01:26]} 37. Bg3 {[%clk 0:01:54.5]}
37... Kh7 {[%clk 0:01:20.8]} 38. Kh3 {[%clk 0:01:50.7]} 38... Re1 {[%clk
0:01:19.6]} 39. Kg2 {[%clk 0:01:48.4]} 39... Re7 {[%clk 0:01:16.6]} 40. Rd5
{[%clk 0:01:43.9]} 40... Rge6 {[%clk 0:01:07]} 41. Rf5 {[%clk 0:01:42.7]} 41...
Rg6 {[%clk 0:00:56.7]} 42. Kf3 {[%clk 0:01:41.5]} 42... Rd7 {[%clk 0:00:54.2]}
43. Bf4 {[%clk 0:01:37]} 43... Ra6 {[%clk 0:00:39.3]} 44. Be3 {[%clk 0:01:33.5]}
44... Rg7 {[%clk 0:00:33.4]} 45. Rc1 {[%clk 0:01:31.6]} 45... Rag6 {[%clk
0:00:30.8]} 46. Rh5 {[%clk 0:01:31.6]} 46... Rf7+ {[%clk 0:00:27.8]} 47. Kg3
{[%clk 0:01:32]} 47... Bd6+ {[%clk 0:00:24]} 48. Kh3 {[%clk 0:01:30.1]} 48...
Rf3+ {[%clk 0:00:23.4]} 49. Kg2 {[%clk 0:01:30.4]} 49... Rf7 {[%clk 0:00:20.9]}
50. f3 {[%clk 0:01:30.6]} 50... Bb4 {[%clk 0:00:19.3]} 51. Rch1 {[%clk
0:01:29.5]} 51... Rff6 {[%clk 0:00:19.5]} 52. g5 {[%clk 0:01:27.3]} 52... Kg8
{[%clk 0:00:18.6]} 53. Rxh6 {[%clk 0:01:24.9]} 53... Rxh6 {[%clk 0:00:18.8]} 54.
Rxh6 {[%clk 0:01:25]} 54... Rf5 {[%clk 0:00:18.7]} 55. Rc6 {[%clk 0:01:20.7]}
55... Re5 {[%clk 0:00:17.1]} 56. Kf2 {[%clk 0:01:20.4]} 56... Rd5 {[%clk
0:00:13.9]} 57. f4 {[%clk 0:01:20.2]} 57... Rd3 {[%clk 0:00:13.4]} 58. f5 {[%clk
0:01:19.6]} 58... Ra3 {[%clk 0:00:13.8]} 59. g6 {[%clk 0:01:18.3]} 59... Ra2+
{[%clk 0:00:13.7]} 60. Kf3 {[%clk 0:01:18.3]} 60... Rxa4 {[%clk 0:00:13.7]} 61.
Rc8+ {[%clk 0:01:17.6]} 61... Bf8 {[%clk 0:00:13.5]} 62. Bh6 {[%clk 0:01:16.8]}
1-0

[Event "*** Titled Tuesday Blitz"]
[Site "Chess.com"]
[Date "2020.04.07"]
[Round "2"]
[White "joksijoksi"]
[Black "chessdjw"]
[Result "0-1"]
[WhiteElo "2270"]
[BlackElo "2653"]
[TimeControl "180+1"]
[EndTime "13:19:30 PDT"]
[Termination "chessdjw won by resignation"]

1. e4 {[%clk 0:03:00.9]} 1... c5 {[%clk 0:02:56.9]} 2. Nc3 {[%clk 0:02:57]} 2...
d6 {[%clk 0:02:55.8]} 3. d4 {[%clk 0:02:55.1]} 3... cxd4 {[%clk 0:02:55.5]} 4.
Qxd4 {[%clk 0:02:56]} 4... Nc6 {[%clk 0:02:55.9]} 5. Qd2 {[%clk 0:02:55.2]} 5...
g6 {[%clk 0:02:53.8]} 6. b3 {[%clk 0:02:54.9]} 6... Bh6 {[%clk 0:02:50]} 7. f4
{[%clk 0:02:54.5]} 7... f5 {[%clk 0:02:50.3]} 8. Bb2 {[%clk 0:02:52.9]} 8... Nf6
{[%clk 0:02:50.9]} 9. O-O-O {[%clk 0:02:51.1]} 9... Be6 {[%clk 0:02:44.7]} 10.
Nge2 {[%clk 0:02:45.5]} 10... Rc8 {[%clk 0:02:43.6]} 11. Kb1 {[%clk 0:02:42.7]}
11... O-O {[%clk 0:02:43.3]} 12. h3 {[%clk 0:02:37.6]} 12... fxe4 {[%clk
0:02:26.2]} 13. g4 {[%clk 0:02:19.4]} 13... Bg7 {[%clk 0:02:24.9]} 14. f5 {[%clk
0:02:04.1]} 14... gxf5 {[%clk 0:02:12.1]} 15. Nf4 {[%clk 0:01:55.8]} 15... Bf7
{[%clk 0:02:04.2]} 16. gxf5 {[%clk 0:01:23.3]} 16... Ne5 {[%clk 0:02:02.5]} 17.
Be2 {[%clk 0:01:13.9]} 17... Qd7 {[%clk 0:01:58.6]} 18. Rhg1 {[%clk 0:01:03]}
18... Qxf5 {[%clk 0:01:57.5]} 19. Ncd5 {[%clk 0:01:00.7]} 19... Nxd5 {[%clk
0:00:55.9]} 20. Nxd5 {[%clk 0:00:55.7]} 20... Bxd5 {[%clk 0:00:53.1]} 21. Qxd5+
{[%clk 0:00:39.8]} 21... Kh8 {[%clk 0:00:52.7]} 22. Bg4 {[%clk 0:00:34.4]} 22...
Nxg4 {[%clk 0:00:45.1]} 23. Bxg7+ {[%clk 0:00:33.4]} 23... Kxg7 {[%clk
0:00:44.6]} 24. Rxg4+ {[%clk 0:00:33.6]} 24... Kf6 {[%clk 0:00:20.6]} 25. Rgg1
{[%clk 0:00:21.7]} 25... Qxd5 {[%clk 0:00:19.4]} 26. Rxd5 {[%clk 0:00:21.7]}
26... Ke6 {[%clk 0:00:17.2]} 27. Rh5 {[%clk 0:00:21.4]} 27... Rf2 {[%clk
0:00:16.5]} 28. Rc1 {[%clk 0:00:19.6]} 28... d5 {[%clk 0:00:13.7]} 29. Rh6+
{[%clk 0:00:19]} 29... Ke5 {[%clk 0:00:13.7]} 30. Rxh7 {[%clk 0:00:19.9]} 30...
e6 {[%clk 0:00:12.9]} 31. Rg7 {[%clk 0:00:18.5]} 31... e3 {[%clk 0:00:12.7]} 32.
Rg3 {[%clk 0:00:17.4]} 32... d4 {[%clk 0:00:11.6]} 33. c3 {[%clk 0:00:14.7]}
33... Ke4 {[%clk 0:00:07.2]} 34. Rg4+ {[%clk 0:00:13]} 34... Kf3 {[%clk
0:00:06.4]} 35. Rxd4 {[%clk 0:00:12.2]} 35... Rg8 {[%clk 0:00:05.8]} 36. Rd7
{[%clk 0:00:09.6]} 36... Rgg2 {[%clk 0:00:05.7]} 37. Rf7+ {[%clk 0:00:09.9]}
37... Ke4 {[%clk 0:00:06.2]} 38. Rxf2 {[%clk 0:00:10.1]} 38... exf2 {[%clk
0:00:06.9]} 0-1

[Event "*** Titled Tuesday Blitz"]
[Site "Chess.com"]
[Date "2020.04.07"]
[Round "2"]
[White "Arman_Hakemi"]
[Black "ChessQueen"]
[Result "1/2-1/2"]
[WhiteElo "2543"]
[BlackElo "2783"]
[TimeControl "180+1"]
[EndTime "13:19:33 PDT"]
[Termination "Game drawn by agreement"]

1. Nf3 {[%clk 0:03:00]} 1... Nf6 {[%clk 0:02:58.9]} 2. b3 {[%clk 0:03:00.4]}
2... b6 {[%clk 0:02:57.3]} 3. g3 {[%clk 0:02:59.4]} 3... Bb7 {[%clk 0:02:57.2]}
4. Bg2 {[%clk 0:02:59.9]} 4... e6 {[%clk 0:02:57]} 5. Bb2 {[%clk 0:03:00]} 5...
Be7 {[%clk 0:02:56.9]} 6. O-O {[%clk 0:03:00.3]} 6... O-O {[%clk 0:02:56.7]} 7.
c4 {[%clk 0:03:00.9]} 7... c5 {[%clk 0:02:49.5]} 8. d4 {[%clk 0:03:00.9]} 8...
d5 {[%clk 0:02:44.2]} 9. Nbd2 {[%clk 0:02:55.3]} 9... Nc6 {[%clk 0:02:37.8]} 10.
e3 {[%clk 0:02:49.6]} 10... Rc8 {[%clk 0:02:34]} 11. Rc1 {[%clk 0:02:46.5]}
11... Nb4 {[%clk 0:02:33.9]} 12. Qe2 {[%clk 0:02:34.9]} 12... a5 {[%clk
0:02:18.8]} 13. a3 {[%clk 0:02:33.4]} 13... Nc6 {[%clk 0:02:19]} 14. cxd5 {[%clk
0:02:32.2]} 14... exd5 {[%clk 0:02:18.2]} 15. Rfd1 {[%clk 0:02:21.6]} 15... Qc7
{[%clk 0:02:07.7]} 16. Nb1 {[%clk 0:02:16]} 16... Qb8 {[%clk 0:02:05.1]} 17. Nc3
{[%clk 0:02:14.1]} 17... Rfd8 {[%clk 0:02:02.6]} 18. dxc5 {[%clk 0:02:11.7]}
18... bxc5 {[%clk 0:02:00.2]} 19. Na4 {[%clk 0:02:11.5]} 19... Ba8 {[%clk
0:01:29.9]} 20. Bxf6 {[%clk 0:02:03.1]} 20... Bxf6 {[%clk 0:01:29]} 21. Nxc5
{[%clk 0:02:02.5]} 21... d4 {[%clk 0:01:20.5]} 22. exd4 {[%clk 0:01:53.8]} 22...
Nxd4 {[%clk 0:01:20.6]} 23. Nxd4 {[%clk 0:01:51.4]} 23... Bxg2 {[%clk
0:01:20.7]} 24. Kxg2 {[%clk 0:01:41.9]} 24... Bxd4 {[%clk 0:01:20.9]} 25. b4
{[%clk 0:00:59.8]} 25... axb4 {[%clk 0:01:17.7]} 26. axb4 {[%clk 0:01:00.7]}
26... Qxb4 {[%clk 0:01:06.2]} 27. Rc4 {[%clk 0:01:00.1]} 27... Qb6 {[%clk
0:01:00.3]} 28. Rdxd4 {[%clk 0:00:47.9]} 28... Rxd4 {[%clk 0:00:59.6]} 29. Rxd4
{[%clk 0:00:48.8]} 29... Qxc5 {[%clk 0:00:59.8]} 30. Qd2 {[%clk 0:00:38.9]}
30... Qc6+ {[%clk 0:00:44.1]} 31. Kg1 {[%clk 0:00:38]} 31... Qb6 {[%clk
0:00:36.7]} 32. Rd6 {[%clk 0:00:33.2]} 32... Qb1+ {[%clk 0:00:35.7]} 33. Kg2
{[%clk 0:00:32.9]} 33... Qb7+ {[%clk 0:00:33.6]} 34. Kg1 {[%clk 0:00:29.6]}
34... Qb1+ {[%clk 0:00:33.2]} 35. Kg2 {[%clk 0:00:29.3]} 35... Qe4+ {[%clk
0:00:33]} 36. Kg1 {[%clk 0:00:27]} 36... h5 {[%clk 0:00:31.4]} 37. Rd8+ {[%clk
0:00:26.6]} 37... Rxd8 {[%clk 0:00:31.7]} 38. Qxd8+ {[%clk 0:00:27.5]} 38... Kh7
{[%clk 0:00:32.6]} 39. h4 {[%clk 0:00:27.5]} 39... f6 {[%clk 0:00:31.1]} 40. Qd2
{[%clk 0:00:26.5]} 40... Kg6 {[%clk 0:00:31]} 41. Kh2 {[%clk 0:00:26.5]} 41...
Qf3 {[%clk 0:00:29]} 42. Qb2 {[%clk 0:00:23.6]} 42... Kh7 {[%clk 0:00:27.5]} 43.
Qc2+ {[%clk 0:00:23.4]} 43... Kh6 {[%clk 0:00:26.2]} 44. Qd2+ {[%clk 0:00:23.4]}
44... Kg6 {[%clk 0:00:26.2]} 45. Qc2+ {[%clk 0:00:23.3]} 45... f5 {[%clk
0:00:26.3]} 46. Qd2 {[%clk 0:00:21.9]} 46... Kh7 {[%clk 0:00:22]} 47. Kg1 {[%clk
0:00:20.7]} 47... Qe4 {[%clk 0:00:21.1]} 48. Qg5 {[%clk 0:00:20.2]} 48... Qe1+
{[%clk 0:00:20.5]} 49. Kg2 {[%clk 0:00:16.7]} 1/2-1/2

[Event "*** Titled Tuesday Blitz"]
[Site "Chess.com"]
[Date "2020.04.07"]
[Round "2"]
[White "SCIM"]
[Black "CarlosAlbornoz"]
[Result "1-0"]
[WhiteElo "2481"]
[BlackElo "2738"]
[TimeControl "180+1"]
[EndTime "13:19:33 PDT"]
[Termination "SCIM won by resignation"]

1. d4 {[%clk 0:03:00.9]} 1... Nf6 {[%clk 0:02:59.7]} 2. c4 {[%clk 0:03:01.2]}
2... g6 {[%clk 0:02:59]} 3. Nc3 {[%clk 0:03:00.3]} 3... Bg7 {[%clk 0:02:59.2]}
4. e4 {[%clk 0:02:59.9]} 4... d6 {[%clk 0:02:59.5]} 5. f3 {[%clk 0:03:00.4]}
5... O-O {[%clk 0:02:59.6]} 6. Be3 {[%clk 0:03:00.5]} 6... c5 {[%clk 0:02:59.9]}
7. d5 {[%clk 0:02:59.9]} 7... e6 {[%clk 0:02:58.5]} 8. Qd2 {[%clk 0:02:59.2]}
8... exd5 {[%clk 0:02:58.7]} 9. cxd5 {[%clk 0:03:00.1]} 9... Re8 {[%clk
0:02:58.9]} 10. Nge2 {[%clk 0:02:54.3]} 10... a6 {[%clk 0:02:52.8]} 11. a4
{[%clk 0:02:54]} 11... Nbd7 {[%clk 0:02:51.1]} 12. Nd1 {[%clk 0:02:54.4]} 12...
Rb8 {[%clk 0:02:39.5]} 13. Nec3 {[%clk 0:02:54.3]} 13... Ne5 {[%clk 0:02:39.4]}
14. Be2 {[%clk 0:02:53.3]} 14... Bd7 {[%clk 0:02:39]} 15. h3 {[%clk 0:02:46.4]}
15... b5 {[%clk 0:02:37.2]} 16. f4 {[%clk 0:02:45.6]} 16... Nc4 {[%clk
0:02:35.8]} 17. Bxc4 {[%clk 0:02:45.4]} 17... bxc4 {[%clk 0:02:36.7]} 18. Nf2
{[%clk 0:02:44.6]} 18... Nh5 {[%clk 0:02:26.1]} 19. O-O {[%clk 0:02:21.7]} 19...
Ng3 {[%clk 0:02:24.6]} 20. Rfe1 {[%clk 0:02:21.1]} 20... Rb3 {[%clk 0:02:17]}
21. e5 {[%clk 0:01:40.9]} 21... dxe5 {[%clk 0:02:14.5]} 22. fxe5 {[%clk
0:01:41.8]} 22... Bxe5 {[%clk 0:02:12.9]} 23. Bxc5 {[%clk 0:01:34.9]} 23... Qb8
{[%clk 0:02:07.7]} 24. Ra2 {[%clk 0:00:44.3]} 24... Bf5 {[%clk 0:01:29.2]} 25.
d6 {[%clk 0:00:23.6]} 25... Nh5 {[%clk 0:00:51.2]} 26. Ng4 {[%clk 0:00:20.9]}
26... Bxg4 {[%clk 0:00:47.2]} 27. hxg4 {[%clk 0:00:21.8]} 27... Bh2+ {[%clk
0:00:46.1]} 28. Kxh2 {[%clk 0:00:18.5]} 28... Rxe1 {[%clk 0:00:44.9]} 29. Qxe1
{[%clk 0:00:18.4]} 29... Nf6 {[%clk 0:00:45.4]} 30. g5 {[%clk 0:00:13.3]} 30...
Ng4+ {[%clk 0:00:41.5]} 31. Kg1 {[%clk 0:00:13.5]} 31... Qc8 {[%clk 0:00:39.4]}
32. Ne4 {[%clk 0:00:12.5]} 32... h5 {[%clk 0:00:34.3]} 33. Ra3 {[%clk
0:00:12.3]} 33... Rd3 {[%clk 0:00:30.6]} 34. Rxd3 {[%clk 0:00:11.9]} 34... cxd3
{[%clk 0:00:31.5]} 35. Qd2 {[%clk 0:00:12.1]} 35... Qf5 {[%clk 0:00:29.4]} 36.
Qxd3 {[%clk 0:00:11.2]} 36... Qf4 {[%clk 0:00:29.3]} 37. Nf6+ {[%clk 0:00:07.7]}
37... Kg7 {[%clk 0:00:25.3]} 38. Nxg4 {[%clk 0:00:07.3]} 38... hxg4 {[%clk
0:00:23.3]} 39. Qd4+ {[%clk 0:00:07.4]} 39... Qxd4+ {[%clk 0:00:23.3]} 40. Bxd4+
{[%clk 0:00:08.3]} 40... Kf8 {[%clk 0:00:24.2]} 41. Bf6 {[%clk 0:00:08.8]} 41...
Ke8 {[%clk 0:00:25.1]} 42. Be7 {[%clk 0:00:09.3]} 42... Kd7 {[%clk 0:00:26]} 43.
Kf2 {[%clk 0:00:09.9]} 43... f6 {[%clk 0:00:26.1]} 44. gxf6 {[%clk 0:00:09.1]}
1-0